fUST/lending_fUST_20241004
["ID","MTS","AMOUNT","RATE_DAILY","PERIOD"]
[339805292,1727991051610,-1911.32,0.00013971,2]
[339805293,1727991051621,-976.03,0.00013971,2]
[339805294,1727991051631,-626.03,0.00013971,2]
[339805295,1727991051642,-391.32809102,0.00013971,2]
[339805296,1727991051652,-500.0,0.00013971,2]
[339805297,1727991051662,-639.79,0.00013971,2]
[339805298,1727991051672,-500.0,0.00013971,2]
[339805299,1727991051682,-500.0,0.00013971,2]
[339805300,1727991051691,-478.92,0.00013971,2]
[339805301,1727991051701,-500.0,0.00013971,2]
[339805302,1727991051710,-770.45,0.00013971,2]
[339805303,1727991051719,-562.32825408,0.00013972,2]
[339805304,1727991051729,-500.0,0.00013972,2]
[339805305,1727991051738,-500.0,0.00013972,2]
[339805306,1727991051747,-774.47,0.00013972,2]
[339805307,1727991051757,-571.88,0.00013972,2]
[339805308,1727991051767,-500.0,0.00013972,2]
[339805309,1727991051776,-545.74,0.00013972,2]
[339805310,1727991051787,-313.59199128,0.00013972,2]
[339805311,1727991051796,-500.0,0.00013972,2]
[339805312,1727991051806,-500.0,0.00013972,2]
[339805313,1727991051816,-500.0,0.00013972,2]
[339805314,1727991051825,-596.22,0.00013972,2]
[339805315,1727991051834,-500.0,0.00013972,2]
[339805316,1727991051843,-500.0,0.00013972,2]
[339805317,1727991051852,-643.22,0.00013972,2]
[339805318,1727991051861,-500.0,0.00013972,2]
[339805319,1727991051871,-500.0,0.00013972,2]
[339805320,1727991051880,-500.0,0.00013972,2]
[339805321,1727991051889,-547.98,0.00013972,2]
[339805322,1727991051898,-500.0,0.00013972,2]
[339805323,1727991051907,-518.08,0.00013972,2]
[339805324,1727991051917,-701.65,0.00013972,2]
[339805325,1727991051927,-500.50724954,0.00013972,2]
[339805326,1727991051936,-500.0,0.00013972,2]
[339805327,1727991051945,-500.0,0.00013972,2]
[339805328,1727991051954,-500.0,0.00013972,2]
[339805329,1727991051963,-500.0,0.00013972,2]
[339805330,1727991051973,-500.0,0.00013972,2]
[339805331,1727991051982,-500.0,0.00013972,2]
[339805332,1727991051992,-500.0,0.00013972,2]
[339805333,1727991052001,-500.0,0.00013972,2]
[339805334,1727991052011,-500.55215447,0.00013972,2]
[339805335,1727991052020,-500.0,0.00013972,2]
[339805336,1727991052030,-500.0,0.00013972,2]
[339805337,1727991052040,-500.0,0.00013972,2]
[339805338,1727991052050,-620.52,0.00013972,2]
[339805339,1727991052059,-500.0,0.00013972,2]
[339805340,1727991052068,-500.0,0.00013972,2]
[339805341,1727991052077,-500.0,0.00013972,2]
[339805342,1727991052086,-500.0,0.00013972,2]
[339805343,1727991052096,-500.0,0.00013972,2]
[339805344,1727991052105,-500.0,0.00013972,2]
[339805345,1727991052114,-503.34393907,0.00013972,2]
[339805346,1727991052123,-500.0,0.00013972,2]
[339805347,1727991052132,-500.0,0.00013972,2]
[339805348,1727991052142,-564.96605348,0.00013972,2]
[339805349,1727991052153,-500.0,0.00013972,2]
[339805350,1727991052163,-500.0,0.00013972,2]
[339805351,1727991052175,-567.93,0.00013972,2]
[339805352,1727991052186,-500.0,0.00013972,2]
[339805353,1727991052196,-647.66,0.00013972,2]
[339805354,1727991052206,-500.0,0.00013972,2]
[339805355,1727991052215,-500.0,0.00013972,2]
[339805356,1727991052225,-500.0,0.00013972,2]
[339805357,1727991052235,-500.0,0.00013972,2]
[339805358,1727991052245,-500.0,0.00013972,2]
[339805359,1727991052256,-500.0,0.00013972,2]
[339805360,1727991052265,-500.0,0.00013972,2]
[339805361,1727991052274,-706.6,0.00013972,2]
[339805362,1727991052284,-500.0,0.00013972,2]
[339805363,1727991052294,-500.0,0.00013972,2]
[339805364,1727991052304,-500.0,0.00013972,2]
[339805365,1727991052314,-500.0,0.00013972,2]
[339805366,1727991052323,-634.51981557,0.00013972,2]
[339805367,1727991052332,-500.0,0.00013972,2]
[339805368,1727991052341,-500.0,0.00013972,2]
[339805369,1727991052351,-500.0,0.00013972,2]
[339805370,1727991052360,-500.0,0.00013972,2]
[339805371,1727991052370,-500.0,0.00013972,2]
[339805372,1727991052380,-500.0,0.00013972,2]
[339805373,1727991052389,-500.0,0.00013972,2]
[339805374,1727991052399,-821.45,0.00013972,2]
[339805375,1727991052408,-500.0,0.00013972,2]
[339805376,1727991052417,-500.0,0.00013972,2]
[339805377,1727991052427,-500.0,0.00013972,2]
[339805378,1727991052436,-500.0,0.00013972,2]
[339805379,1727991052445,-500.0,0.00013972,2]
[339805380,1727991052455,-500.0,0.00013972,2]
[339805381,1727991052464,-260.93479065,0.00013972,2]
[339805382,1727991052473,-500.0,0.00013972,2]
[339805383,1727991052483,-500.0,0.00013972,2]
[339805384,1727991052492,-696.78,0.00013972,2]
[339805385,1727991052501,-251.13473162,0.00013972,2]
[339805386,1727991052510,-500.0,0.00013972,2]
[339805387,1727991052520,-500.0,0.00013972,2]
[339805388,1727991052531,-500.0,0.00013972,2]
[339805389,1727991052540,-500.0,0.00013972,2]
[339805390,1727991052551,-500.0,0.00013972,2]
[339805391,1727991052561,-500.0,0.00013972,2]
[339805392,1727991052570,-686.64,0.00013972,2]
[339805393,1727991052579,-599.02,0.00013972,2]
[339805394,1727991052588,-500.0,0.00013972,2]
[339805395,1727991052598,-500.0,0.00013972,2]
[339805396,1727991052607,-500.0,0.00013972,2]
[339805397,1727991052619,-500.0,0.00013972,2]
[339805398,1727991052630,-500.0,0.00013972,2]
[339805399,1727991052640,-500.0,0.00013972,2]
[339805400,1727991052652,-764.13,0.00013972,2]
[339805401,1727991052663,-500.0,0.00013972,2]
[339805402,1727991052672,-500.0,0.00013972,2]
[339805403,1727991052682,-410.044365,0.00013972,2]
[339805404,1727991052691,-500.0,0.00013972,2]
[339805405,1727991052700,-500.0,0.00013972,2]
[339805406,1727991052710,-500.0,0.00013972,2]
[339805407,1727991052719,-500.0,0.00013972,2]
[339805408,1727991052728,-500.0,0.00013972,2]
[339805409,1727991052737,-899.04,0.00013972,2]
[339805410,1727991052747,-500.0,0.00013972,2]
[339805411,1727991052756,-588.53,0.00013972,2]
[339805412,1727991052765,-500.0,0.00013972,2]
[339805413,1727991052774,-500.0,0.00013972,2]
[339805414,1727991052785,-500.0,0.00013972,2]
[339805415,1727991052794,-500.0,0.00013972,2]
[339805416,1727991052805,-500.0,0.00013972,2]
[339805417,1727991052817,-500.0,0.00013972,2]
[339805418,1727991052828,-500.0,0.00013972,2]
[339805419,1727991052838,-500.0,0.00013972,2]
[339805420,1727991052848,-793.17,0.00013972,2]
[339805421,1727991052857,-500.0,0.00013972,2]
[339805422,1727991052867,-500.0,0.00013972,2]
[339805423,1727991052876,-1228.34,0.00013972,2]
[339805424,1727991052887,-500.0,0.00013972,2]
[339805425,1727991052897,-500.0,0.00013972,2]
[339805426,1727991052908,-516.53,0.00013972,2]
[339805427,1727991052918,-607.95,0.00013972,2]
[339805428,1727991052928,-500.0,0.00013972,2]
[339805429,1727991052938,-500.0,0.00013972,2]
[339805430,1727991052949,-500.0,0.00013972,2]
[339805431,1727991052959,-540.84,0.00013972,2]
[339805432,1727991052968,-500.0,0.00013972,2]
[339805433,1727991052977,-500.0,0.00013972,2]
[339805434,1727991052987,-500.0,0.00013972,2]
[339805435,1727991052998,-432.83599214,0.00013972,2]
[339805436,1727991053009,-500.0,0.00013972,2]
[339805437,1727991053020,-514.29,0.00013972,2]
[339805438,1727991053031,-1219.45,0.00013972,2]
[339805439,1727991053040,-675.56,0.00013972,2]
[339805440,1727991053049,-500.0,0.00013972,2]
[339805441,1727991053058,-500.0,0.00013972,2]
[339805442,1727991053067,-500.0,0.00013972,2]
[339805443,1727991053076,-534.70014483,0.00013972,2]
[339805444,1727991053085,-500.0,0.00013972,2]
[339805445,1727991053094,-500.0,0.00013972,2]
[339805446,1727991053104,-500.0,0.00013972,2]
[339805447,1727991053113,-692.63,0.00013972,2]
[339805448,1727991053123,-500.0,0.00013972,2]
[339805449,1727991053132,-500.0,0.00013972,2]
[339805450,1727991053142,-500.0,0.00013972,2]
[339805451,1727991053151,-500.0,0.00013972,2]
[339805452,1727991053162,-612.01,0.00013972,2]
[339805453,1727991053172,-561.03,0.00013972,2]
[339805454,1727991053182,-500.0,0.00013972,2]
[339805455,1727991053191,-500.0,0.00013972,2]
[339805456,1727991053202,-500.0,0.00013972,2]
[339805457,1727991053211,-500.0,0.00013972,2]
[339805458,1727991053221,-500.0,0.00013972,2]
[339805459,1727991053230,-500.0,0.00013972,2]
[339805460,1727991053239,-500.0,0.00013972,2]
[339805461,1727991053248,-500.0,0.00013972,2]
[339805462,1727991053257,-500.0,0.00013972,2]
[339805463,1727991053267,-500.0,0.00013972,2]
[339805464,1727991053278,-500.0,0.00013972,2]
[339805465,1727991053288,-500.0,0.00013972,2]
[339805466,1727991053297,-500.0,0.00013972,2]
[339805467,1727991053307,-500.0,0.00013972,2]
[339805468,1727991053443,-542.94,0.00013972,2]
[339805469,1727991053452,-500.0,0.00013972,2]
[339805470,1727991053462,-500.0,0.00013972,2]
[339805471,1727991053471,-500.0,0.00013972,2]
[339805472,1727991053480,-540.86,0.00013972,2]
[339805473,1727991053490,-500.0,0.00013972,2]
[339805474,1727991053499,-726.9,0.00013972,2]
[339805475,1727991053508,-519.35817082,0.00013972,2]
[339805476,1727991053517,-500.0,0.00013972,2]
[339805477,1727991053527,-500.0,0.00013972,2]
[339805478,1727991053536,-1001.38,0.00013972,2]
[339805479,1727991053546,-598.02,0.00013972,2]
[339805480,1727991053555,-500.0,0.00013972,2]
[339805481,1727991053564,-607.7,0.00013972,2]
[339805482,1727991053574,-566.48,0.00013972,2]
[339805483,1727991053584,-820.02,0.00013972,2]
[339805484,1727991053597,-500.0,0.00013972,2]
[339805485,1727991053607,-500.0,0.00013972,2]
[339805486,1727991053616,-500.0,0.00013972,2]
[339805487,1727991053625,-500.0,0.00013972,2]
[339805488,1727991053635,-500.0,0.00013972,2]
[339805489,1727991053645,-500.0,0.00013972,2]
[339805490,1727991053654,-500.0,0.00013972,2]
[339805491,1727991053664,-500.0,0.00013972,2]
[339805492,1727991053674,-458.30709146,0.00013972,2]
[339805493,1727991053683,-500.0,0.00013972,2]
[339805494,1727991053693,-500.0,0.00013972,2]
[339805495,1727991053703,-500.0,0.00013972,2]
[339805496,1727991053714,-515.82,0.00013972,2]
[339805497,1727991053724,-500.0,0.00013972,2]
[339805498,1727991053735,-500.0,0.00013972,2]
[339805499,1727991053747,-324.33429113,0.00013972,2]
[339805500,1727991053759,-500.0,0.00013972,2]
[339805501,1727991053770,-500.0,0.00013972,2]
[339805502,1727991053780,-500.0,0.00013972,2]
[339805503,1727991053789,-500.0,0.00013972,2]
[339805504,1727991053798,-500.0,0.00013972,2]
[339805505,1727991053808,-500.0,0.00013972,2]
[339805506,1727991053819,-500.0,0.00013972,2]
[339805507,1727991053832,-500.0,0.00013972,2]
[339805508,1727991053842,-500.0,0.00013972,2]
[339805509,1727991053852,-500.0,0.00013972,2]
[339805510,1727991053861,-500.0,0.00013972,2]
[339805511,1727991053871,-623.72,0.00013972,2]
[339805512,1727991053879,-500.0,0.00013972,2]
[339805513,1727991053889,-500.0,0.00013972,2]
[339805514,1727991053898,-500.0,0.00013972,2]
[339805515,1727991053908,-500.0,0.00013972,2]
[339805516,1727991053917,-500.0,0.00013972,2]
[339805517,1727991053926,-500.0,0.00013972,2]
[339805518,1727991053936,-500.0,0.00013972,2]
[339805519,1727991053945,-500.0,0.00013972,2]
[339805520,1727991053954,-624.31,0.00013972,2]
[339805521,1727991053964,-732.1,0.00013972,2]
[339805522,1727991053974,-500.0,0.00013972,2]
[339805523,1727991053983,-643.34,0.00013972,2]
[339805524,1727991053992,-500.0,0.00013972,2]
[339805525,1727991054002,-562.79,0.00013972,2]
[339805526,1727991054011,-500.0,0.00013972,2]
[339805527,1727991054021,-500.0,0.00013972,2]
[339805528,1727991054032,-739.51,0.00013972,2]
[339805529,1727991054045,-500.0,0.00013972,2]
[339805530,1727991054054,-569.64,0.00013972,2]
[339805531,1727991054064,-599.78,0.00013972,2]
[339805532,1727991054073,-500.0,0.00013972,2]
[339805533,1727991054083,-500.0,0.00013972,2]
[339805534,1727991054092,-500.0,0.00013972,2]
[339805535,1727991054101,-500.0,0.00013972,2]
[339805536,1727991054113,-500.0,0.00013972,2]
[339805537,1727991054123,-500.0,0.00013972,2]
[339805538,1727991054132,-500.0,0.00013972,2]
[339805539,1727991054143,-500.0,0.00013972,2]
[339805540,1727991054153,-524.39,0.00013972,2]
[339805541,1727991054163,-500.0,0.00013972,2]
[339805542,1727991054175,-1827.82,0.00013972,2]
[339805543,1727991054185,-500.0,0.00013972,2]
[339805544,1727991054195,-500.0,0.00013972,2]
[339805545,1727991054204,-500.0,0.00013972,2]
[339805546,1727991054215,-500.0,0.00013972,2]
[339805547,1727991054227,-459.74905199,0.00013972,2]
[339805548,1727991054237,-500.0,0.00013972,2]
[339805549,1727991054246,-500.0,0.00013972,2]
[339805550,1727991054257,-500.0,0.00013972,2]
[339805551,1727991054266,-500.0,0.00013972,2]
[339805552,1727991054275,-500.0,0.00013972,2]
[339805553,1727991054285,-500.0,0.00013972,2]
[339805554,1727991054295,-500.0,0.00013972,2]
[339805555,1727991054304,-658.62,0.00013972,2]
[339805556,1727991054314,-729.47,0.00013972,2]
[339805557,1727991054323,-500.0,0.00013972,2]
[339805558,1727991054333,-500.0,0.00013972,2]
[339805559,1727991054342,-500.0,0.00013972,2]
[339805560,1727991054352,-500.0,0.00013972,2]
[339805561,1727991054362,-689.52,0.00013972,2]
[339805562,1727991054372,-500.0,0.00013972,2]
[339805563,1727991054382,-500.66198107,0.00013972,2]
[339805564,1727991054392,-500.0,0.00013972,2]
[339805565,1727991054401,-500.0,0.00013972,2]
[339805566,1727991054410,-500.0,0.00013972,2]
[339805567,1727991054420,-749.41,0.00013972,2]
[339805568,1727991054430,-500.0,0.00013972,2]
[339805569,1727991054439,-500.0,0.00013972,2]
[339805570,1727991054449,-500.0,0.00013972,2]
[339805571,1727991054459,-500.0,0.00013972,2]
[339805572,1727991054468,-500.0,0.00013972,2]
[339805573,1727991054478,-500.0,0.00013972,2]
[339805574,1727991054488,-500.0,0.00013972,2]
[339805575,1727991054499,-500.0,0.00013972,2]
[339805576,1727991054509,-500.0,0.00013972,2]
[339805577,1727991054519,-500.0,0.00013972,2]
[339805578,1727991054529,-627.67,0.00013972,2]
[339805579,1727991054539,-500.0,0.00013972,2]
[339805580,1727991054548,-500.0,0.00013972,2]
[339805581,1727991054557,-500.0,0.00013972,2]
[339805582,1727991054566,-500.0,0.00013972,2]
[339805583,1727991054575,-516.43237155,0.00013972,2]
[339805584,1727991054585,-500.0,0.00013972,2]
[339805585,1727991054598,-500.0,0.00013972,2]
[339805586,1727991054608,-500.0,0.00013972,2]
[339805587,1727991054618,-645.54,0.00013972,2]
[339805588,1727991054628,-500.0,0.00013972,2]
[339805589,1727991054638,-540.07228377,0.00013972,2]
[339805590,1727991054648,-500.0,0.00013972,2]
[339805591,1727991054660,-500.0,0.00013972,2]
[339805592,1727991054669,-629.65,0.00013972,2]
[339805593,1727991054679,-500.0,0.00013972,2]
[339805594,1727991054689,-500.0,0.00013972,2]
[339805595,1727991054698,-500.0,0.00013972,2]
[339805596,1727991054707,-500.0,0.00013972,2]
[339805597,1727991054717,-500.0,0.00013972,2]
[339805598,1727991054726,-500.0,0.00013972,2]
[339805599,1727991054737,-632.99578657,0.00013972,2]
[339805600,1727991054747,-500.0,0.00013972,2]
[339805601,1727991054757,-500.0,0.00013972,2]
[339805602,1727991054767,-575.73,0.00013972,2]
[339805603,1727991054777,-572.38,0.00013972,2]
[339805604,1727991054788,-508.6230394,0.00013972,2]
[339805605,1727991054797,-551.74,0.00013972,2]
[339805606,1727991054807,-500.0,0.00013972,2]
[339805607,1727991054816,-500.0,0.00013972,2]
[339805608,1727991054825,-500.0,0.00013972,2]
[339805609,1727991054834,-547.53,0.00013972,2]
[339805610,1727991054844,-500.0,0.00013972,2]
[339805611,1727991054854,-500.0,0.00013972,2]
[339805612,1727991054864,-1192.1,0.00013972,2]
[339805613,1727991054875,-500.0,0.00013972,2]
[339805614,1727991054886,-571.9,0.00013972,2]
[339805615,1727991054897,-665.7,0.00013972,2]
[339805616,1727991054907,-500.0,0.00013972,2]
[339805617,1727991054917,-786.97,0.00013972,2]
[339805618,1727991054927,-500.0,0.00013972,2]
[339805619,1727991054937,-500.0,0.00013972,2]
[339805620,1727991054948,-500.0,0.00013972,5]
[339805621,1727991054960,-500.0,0.00013972,2]
[339805622,1727991054969,-679.89,0.00013972,2]
[339805623,1727991054979,-500.0,0.00013972,2]
[339805624,1727991054989,-628.91,0.00013972,2]
[339805625,1727991054998,-596.92,0.00013972,2]
[339805626,1727991055007,-500.0,0.00013972,2]
[339805627,1727991055016,-1967.0,0.00013972,7]
[339805628,1727991055026,-716.32,0.00013972,2]
[339805629,1727991055036,-500.0,0.00013972,2]
[339805630,1727991055045,-684.13,0.00013972,2]
[339805631,1727991055055,-500.0,0.00013972,2]
[339805632,1727991055064,-500.0,0.00013972,2]
[339805633,1727991055074,-500.0,0.00013972,2]
[339805634,1727991055084,-548.3,0.00013972,2]
[339805635,1727991055095,-551.25,0.00013972,2]
[339805636,1727991055104,-500.0,0.00013972,2]
[339805637,1727991055115,-511.88,0.00013972,2]
[339805638,1727991055126,-160.20608756,0.00013972,2]
[339805639,1727991055138,-633.65,0.00013972,2]
[339805640,1727991055149,-554.07,0.00013972,2]
[339805641,1727991055159,-500.0,0.00013972,2]
[339805642,1727991055169,-500.0,0.00013972,2]
[339805643,1727991055179,-500.0,0.00013972,2]
[339805644,1727991055188,-500.0,0.00013972,2]
[339805645,1727991055198,-500.0,0.00013972,2]
[339805646,1727991055207,-500.86,0.00013972,2]
[339805647,1727991055218,-574.60472432,0.00013972,2]
[339805648,1727991055227,-768.34,0.00013972,2]
[339805649,1727991055238,-500.0,0.00013972,2]
[339805650,1727991055251,-500.0,0.00013972,2]
[339805651,1727991055261,-500.0,0.00013972,2]
[339805652,1727991055272,-893.96,0.00013972,2]
[339805653,1727991055283,-500.0,0.00013972,2]
[339805654,1727991055293,-500.4,0.00013972,2]
[339805655,1727991055305,-500.0,0.00013972,2]
[339805656,1727991055316,-21069.77,0.00013972,2]
[339805657,1727991055326,-500.0,0.00013972,2]
[339805658,1727991055337,-500.0,0.00013972,2]
[339805659,1727991055346,-500.0,0.00013972,2]
[339805660,1727991055355,-500.0,0.00013972,2]
[339805661,1727991055367,-500.0,0.00013972,2]
[339805662,1727991055377,-733.13,0.00013972,2]
[339805663,1727991055387,-508.59607649,0.00013972,2]
[339805664,1727991055397,-500.0,0.00013972,2]
[339805665,1727991055407,-602.6,0.00013972,2]
[339805666,1727991055416,-500.0,0.00013972,2]
[339805667,1727991055426,-2887.45,0.00013972,2]
[339805668,1727991055435,-500.0,0.00013972,2]
[339805669,1727991055445,-500.0,0.00013972,2]
[339805670,1727991055455,-913.79,0.00013972,2]
[339805671,1727991055465,-500.0,0.00013972,2]
[339805672,1727991055475,-545.44,0.00013972,2]
[339805673,1727991055485,-500.0,0.00013972,2]
[339805674,1727991055495,-500.0,0.00013972,2]
[339805675,1727991055504,-500.0,0.00013972,2]
[339805676,1727991055514,-1704.73,0.00013972,2]
[339805677,1727991055524,-815.48,0.00013972,2]
[339805678,1727991055535,-500.0,0.00013972,2]
[339805679,1727991055546,-865.43,0.00013972,2]
[339805680,1727991055557,-500.0,0.00013972,2]
[339805681,1727991055566,-546.25,0.00013972,2]
[339805682,1727991055575,-500.0,0.00013972,2]
[339805683,1727991055584,-500.0,0.00013972,2]
[339805684,1727991055597,-500.0,0.00013972,2]
[339805685,1727991055606,-507.71,0.00013972,2]
[339805686,1727991055615,-500.0,0.00013972,2]
[339805687,1727991055625,-500.0,0.00013972,2]
[339805688,1727991055635,-695.12,0.00013972,2]
[339805689,1727991055645,-500.0,0.00013972,2]
[339805690,1727991055654,-500.0,0.00013972,2]
[339805691,1727991055665,-500.0,0.00013972,2]
[339805692,1727991055675,-500.0,0.00013972,2]
[339805693,1727991055685,-500.0,0.00013972,2]
[339805694,1727991055694,-500.0,0.00013972,2]
[339805695,1727991055704,-602.71,0.00013972,2]
[339805696,1727991055713,-500.0,0.00013972,2]
[339805697,1727991055723,-187.2399635,0.00013972,2]
[339805698,1727991055732,-500.0,0.00013972,2]
[339805699,1727991055741,-500.0,0.00013972,2]
[339805700,1727991055751,-500.0,0.00013972,2]
[339805701,1727991055762,-500.0,0.00013972,2]
[339805702,1727991055771,-500.0,0.00013972,2]
[339805703,1727991055780,-500.0,0.00013972,2]
[339805704,1727991055789,-500.0,0.00013972,2]
[339805705,1727991055798,-574.99,0.00013972,2]
[339805706,1727991055807,-500.0,0.00013972,2]
[339805707,1727991055816,-500.0,0.00013972,2]
[339805708,1727991055826,-500.0,0.00013972,2]
[339805709,1727991055835,-500.0,0.00013972,2]
[339805710,1727991055844,-744.27,0.00013972,2]
[339805711,1727991055974,-901.4,0.00013972,2]
[339805712,1727991055985,-500.0,0.00013972,2]
[339805713,1727991055995,-634.02,0.00013972,2]
[339805714,1727991056007,-507.13568959,0.00013972,2]
[339805715,1727991056017,-500.0,0.00013972,2]
[339805716,1727991056028,-500.0,0.00013972,2]
[339805717,1727991056038,-500.0,0.00013972,2]
[339805718,1727991056049,-500.0,0.00013972,2]
[339805719,1727991056058,-500.0,0.00013972,2]
[339805720,1727991056067,-500.0,0.00013972,2]
[339805721,1727991056076,-500.0,0.00013972,2]
[339805722,1727991056086,-500.0,0.00013972,2]
[339805723,1727991056096,-500.0,0.00013972,2]
[339805724,1727991056105,-505.02352526,0.00013972,2]
[339805725,1727991056456,-14.58482553,0.00013972,2]
[339805726,1727991056465,-508.99,0.00013972,2]
[339805727,1727991056475,-500.0,0.00013972,2]
[339805728,1727991056485,-500.0,0.00013972,2]
[339805729,1727991056495,-726.11,0.00013972,2]
[339805730,1727991056505,-500.0,0.00013972,2]
[339805731,1727991056514,-647.8,0.00013972,2]
[339805732,1727991056523,-500.0,0.00013972,2]
[339805733,1727991056533,-500.0,0.00013972,2]
[339805734,1727991056542,-500.0,0.00013972,2]
[339805735,1727991056551,-500.0,0.00013972,2]
[339805736,1727991056561,-709.44,0.00013972,2]
[339805737,1727991056570,-571.18,0.00013972,2]
[339805738,1727991056579,-506.40344217,0.00013972,2]
[339805739,1727991056591,-500.0,0.00013972,2]
[339805740,1727991056601,-500.0,0.00013972,2]
[339805741,1727991056611,-500.0,0.00013972,2]
[339805742,1727991056622,-500.0,0.00013972,2]
[339805743,1727991056632,-500.0,0.00013972,2]
[339805744,1727991056644,-628.89293735,0.00013972,2]
[339805745,1727991056656,-1102.68,0.00013972,2]
[339805746,1727991056667,-500.0,0.00013972,2]
[339805747,1727991056678,-326.42444621,0.00013972,2]
[339805748,1727991056690,-500.0,0.00013972,2]
[339805749,1727991056702,-500.0,0.00013972,2]
[339805750,1727991056714,-500.0,0.00013972,2]
[339805751,1727991056723,-500.51080062,0.00013972,2]
[339805752,1727991056735,-601.83,0.00013972,2]
[339805753,1727991056747,-1078.1,0.00013972,2]
[339805754,1727991056756,-1051.98,0.00013972,2]
[339805755,1727991056766,-518.3,0.00013972,2]
[339805756,1727991056776,-500.0,0.00013972,2]
[339805757,1727991056786,-500.0,0.00013972,2]
[339805758,1727991056796,-537.0,0.00013972,2]
[339805759,1727991056805,-627.85,0.00013972,2]
[339805760,1727991056815,-500.0,0.00013972,2]
[339805761,1727991056826,-500.0,0.00013972,2]
[339805762,1727991056837,-661.54,0.00013972,2]
[339805763,1727991056847,-500.0,0.00013972,2]
[339805764,1727991056856,-1858.51,0.00013972,2]
[339805765,1727991056866,-500.0,0.00013972,2]
[339805766,1727991056876,-500.0,0.00013972,2]
[339805767,1727991056885,-500.0,0.00013972,2]
[339805768,1727991056894,-500.0,0.00013972,2]
[339805769,1727991056904,-514.45395012,0.00013972,2]
[339805770,1727991056913,-662.46,0.00013972,2]
[339805771,1727991056923,-500.0,0.00013972,2]
[339805772,1727991056932,-500.0,0.00013972,2]
[339805773,1727991056944,-500.0,0.00013972,2]
[339805774,1727991056955,-596.75,0.00013972,2]
[339805775,1727991056965,-562.89476415,0.00013972,2]
[339805776,1727991056974,-500.0,0.00013972,2]
[339805777,1727991056983,-500.0,0.00013972,2]
[339805778,1727991056992,-500.0,0.00013972,2]
[339805779,1727991057002,-500.0,0.00013972,2]
[339805780,1727991057012,-500.0,0.00013972,2]
[339805781,1727991057021,-500.0,0.00013972,2]
[339805782,1727991057031,-500.0,0.00013972,2]
[339805783,1727991057041,-733.09,0.00013972,2]
[339805784,1727991057051,-781.47,0.00013972,2]
[339805785,1727991057061,-500.0,0.00013972,2]
[339805786,1727991057070,-739.86,0.00013972,2]
[339805787,1727991057080,-500.0,0.00013972,2]
[339805788,1727991057091,-500.0,0.00013972,2]
[339805789,1727991057102,-1099.9,0.00013972,2]
[339805790,1727991057112,-500.0,0.00013972,2]
[339805791,1727991057122,-500.0,0.00013972,2]